fUST/lending_fUST_20241028
["ID","MTS","AMOUNT","RATE_DAILY","PERIOD"]
[340932784,1730129440649,-500.0,0.00024657,4]
[340932785,1730129440659,-644.42,0.00024657,4]
[340932786,1730129440669,-365.43483745,0.00024657,4]
[340932787,1730129440679,-1268.24,0.00024657,4]
[340932788,1730129440688,-500.0,0.00024657,4]
[340932789,1730129440700,-975.81,0.00024657,4]
[340932790,1730129440709,-500.0,0.00024657,4]
[340932791,1730129440720,-501.38955266,0.00024657,4]
[340932792,1730129440730,-500.0,0.00024657,4]
[340932793,1730129440740,-500.0,0.00024657,4]
[340932794,1730129440749,-543.4207114,0.00024657,4]
[340932795,1730129440760,-1017.35,0.00024657,4]
[340932796,1730129440771,-620.42,0.00024657,4]
[340932797,1730129440783,-500.0,0.00024657,4]
[340932798,1730129440794,-500.0,0.00024657,4]
[340932799,1730129440806,-576.34,0.00024657,4]
[340932800,1730129440816,-504.00894757,0.00024657,4]
[340932801,1730129440828,-1089.8,0.00024657,4]
[340932802,1730129440838,-500.0,0.00024657,4]
[340932803,1730129440848,-507.55537715,0.00024657,4]
[340932804,1730129440859,-500.0,0.00024657,4]
[340932805,1730129440869,-451.24698303,0.00024657,4]
[340932806,1730129440878,-500.0,0.00024657,4]
[340932807,1730129440888,-1006.91,0.00024657,4]
[340932808,1730129440899,-506.32663148,0.00024657,4]
[340932809,1730129440910,-523.23,0.00024657,4]
[340932810,1730129440920,-500.0,0.00024657,4]
[340932811,1730129440930,-500.0,0.00024657,4]
[340932812,1730129440939,-500.0,0.00024657,4]
[340932813,1730129440949,-4461.47,0.00024657,4]
[340932814,1730129440959,-620.97,0.00024657,4]
[340932815,1730129440968,-500.0,0.00024657,4]
[340932816,1730129440980,-500.0,0.00024657,4]
[340932817,1730129440992,-500.0,0.00024657,4]
[340932818,1730129441003,-506.47087581,0.00024657,4]
[340932819,1730129441013,-1799.72,0.00024657,4]
[340932820,1730129441022,-500.0,0.00024657,4]
[340932821,1730129441032,-530.25,0.00024657,4]
[340932822,1730129441041,-500.0,0.00024657,4]
[340932823,1730129441051,-500.0,0.00024657,4]
[340932824,1730129441062,-878.91,0.00024657,4]
[340932825,1730129441072,-500.0,0.00024657,4]
[340932826,1730129441082,-500.0,0.00024657,4]
[340932827,1730129441092,-742.22,0.00024657,4]
[340932828,1730129441101,-500.0,0.00024657,4]
[340932829,1730129441114,-500.0,0.00024657,4]
[340932830,1730129441123,-579.23442555,0.00024657,4]
[340932831,1730129441132,-769.44,0.00024657,4]
[340932832,1730129441143,-277.75685796,0.00024657,4]
[340932833,1730129441152,-500.0,0.00024657,4]
[340932834,1730129441162,-522.04080737,0.00024657,4]
[340932835,1730129441172,-500.0,0.00024657,4]
[340932836,1730129441182,-500.0,0.00024657,4]
[340932837,1730129441191,-500.0,0.00024657,4]
[340932838,1730129441201,-624.33,0.00024657,4]
[340932839,1730129441211,-1927.27,0.00024657,4]
[340932840,1730129441221,-819.93,0.00024657,4]
[340932841,1730129441231,-1497.68,0.00024657,4]
[340932842,1730129441241,-503.17207538,0.00024657,4]
[340932843,1730129441251,-511.15507076,0.00024657,4]
[340932844,1730129441261,-500.0,0.00024657,4]
[340932845,1730129441271,-500.65245314,0.00024657,4]
[340932846,1730129441281,-435.45781562,0.00024657,4]
[340932847,1730129441291,-1026.37,0.00024657,4]
[340932848,1730129441301,-500.0,0.00024657,4]
[340932849,1730129441311,-2868.93,0.00024657,4]
[340932850,1730129441320,-761.76,0.00024657,4]
[340932851,1730129441330,-738.76,0.00024657,4]
[340932852,1730129441340,-683.67,0.00024657,4]
[340932853,1730129441349,-500.0,0.00024657,4]
[340932854,1730129441363,-500.0,0.00024657,4]
[340932855,1730129441373,-786.95,0.00024657,4]
[340932856,1730129441382,-6316.7,0.00024657,4]
[340932857,1730129441392,-1284.43,0.00024657,4]
[340932858,1730129441402,-650.23,0.00024657,4]
[340932859,1730129441412,-500.0,0.00024657,4]
[340932860,1730129441422,-3145.16,0.00024657,4]
[340932861,1730129441432,-401.82146368,0.00024657,4]
[340932862,1730129441441,-1227.62,0.00024657,4]
[340932863,1730129441451,-1884.49,0.00024657,4]
[340932864,1730129441461,-601.67,0.00024657,4]
[340932865,1730129441471,-1727.69,0.00024657,4]
[340932866,1730129441480,-500.0,0.00024657,4]
[340932867,1730129441490,-500.0,0.00024657,4]
[340932868,1730129441501,-1046.1,0.00024657,4]
[340932869,1730129441512,-500.0,0.00024657,4]
[340932870,1730129441523,-1689.97,0.00024657,4]
[340932871,1730129441533,-778.9,0.00024657,4]
[340932872,1730129441545,-652.89,0.00024657,4]
[340932873,1730129441557,-1030.36,0.00024657,4]
[340932874,1730129441567,-500.0,0.00024657,4]
[340932875,1730129441578,-500.0,0.00024657,4]
[340932876,1730129441589,-1456.12,0.00024657,4]
[340932877,1730129441600,-1629.02,0.00024657,4]
[340932878,1730129441612,-500.0,0.00024657,4]
[340932879,1730129441622,-500.0,0.00024657,4]
[340932880,1730129441635,-500.0,0.00024657,4]
[340932881,1730129441648,-1204.2,0.00024657,4]
[340932882,1730129441658,-500.0,0.00024657,4]
[340932883,1730129441667,-1554.92,0.00024657,4]
[340932884,1730129441677,-507.55,0.00024657,4]
[340932885,1730129441687,-500.0,0.00024657,4]
[340932886,1730129441697,-500.0,0.00024657,2]
[340932887,1730129441707,-500.0,0.00024657,4]
[340932888,1730129441717,-400.43065772,0.00024657,4]
[340932889,1730129441727,-500.0,0.00024657,4]
[340932890,1730129441738,-925.28,0.00024657,4]
[340932891,1730129441750,-500.43870308,0.00024657,2]
[340932892,1730129441761,-610.14,0.00024657,4]
[340932893,1730129441771,-150.0,0.00024658,2]
[340932894,1730129441781,-160.1532753,0.00024658,2]
[340932895,1730129441791,-501.45061155,0.00024673,2]
[340932896,1730129441801,-501.43004975,0.00024673,2]
[340932897,1730129441812,-198.9554568,0.00024673,2]
[340932898,1730129441824,-635.19603236,0.00024673,2]
[340932899,1730129441834,-526.95767508,0.00024673,2]
[340932900,1730129441845,-508.96719328,0.00024673,2]
[340932901,1730129441855,-500.99652189,0.00024673,2]
[340932902,1730129441866,-501.34011298,0.00024673,2]
[340932903,1730129441877,-355.94209771,0.00024673,2]
[340932904,1730129441886,-160.0,0.00024673,2]
[340932905,1730129441896,-500.0,0.00024673,2]
[340932906,1730129441910,-500.69668226,0.00024673,2]
[340932907,1730129441921,-150.25097901,0.00024673,2]
[340932908,1730129441933,-500.0,0.00024673,2]
[340932909,1730129441947,-500.07929953,0.00024673,2]
[340932910,1730129441958,-500.0,0.00024673,2]
[340932911,1730129441971,-500.0,0.00024673,2]
[340932912,1730129441981,-500.0,0.00024673,2]
[340932913,1730129441993,-500.0,0.00024673,2]
[340932914,1730129442004,-334.3266721,0.00024673,2]
[340932915,1730129442015,-500.0,0.00024673,2]
[340932916,1730129442025,-10498.8548561,0.00024682,2]
[340932917,1730129442043,-77708.79341,0.00024682,2]
[340932918,1730129442062,-47839.51172376,0.00024682,2]
[340932919,1730129442074,-385.3110121,0.00024685,2]
[340932920,1730129442086,-150.112245,0.000249,2]
[340932921,1730129442097,-448.3419702,0.00024931,4]
[340932922,1730129442110,-500.0,0.00024931,4]
[340932923,1730129442121,-500.0,0.00024931,4]
[340932924,1730129442131,-500.0,0.00024931,4]
[340932925,1730129442142,-500.0,0.00024931,4]
[340932926,1730129442152,-500.0,0.00024931,4]
[340932927,1730129442162,-1140.24,0.00024931,4]
[340932928,1730129442171,-500.0,0.00024931,4]
[340932929,1730129442181,-500.0,0.00024931,4]
[340932930,1730129442191,-500.0,0.00024931,4]
[340932931,1730129442201,-500.0,0.00024931,4]
[340932932,1730129442211,-749.87,0.00024931,4]
[340932933,1730129442221,-500.0,0.00024931,4]
[340932934,1730129442231,-500.0,0.00024931,4]
[340932935,1730129442240,-500.0,0.00024931,4]
[340932936,1730129442250,-200.0,0.00024931,4]
[340932937,1730129442260,-543.99,0.00024931,4]
[340932938,1730129442271,-760.29,0.00024931,4]
[340932939,1730129442281,-500.0,0.00024931,4]
[340932940,1730129442291,-500.0,0.00024931,4]
[340932941,1730129442301,-500.0,0.00024931,4]
[340932942,1730129442311,-1004.66,0.00024931,4]
[340932943,1730129442320,-500.0,0.00024931,4]
[340932944,1730129442330,-1133.69,0.00024931,4]
[340932945,1730129442340,-591.96,0.00024931,4]
[340932946,1730129442351,-711.78,0.00024931,4]
[340932947,1730129442362,-1542.68,0.00024931,4]
[340932948,1730129442372,-578.82,0.00024931,4]
[340932949,1730129442382,-500.0,0.00024931,4]
[340932950,1730129442392,-722.74,0.00024931,4]
[340932951,1730129442401,-955.43,0.00024931,4]
[340932952,1730129442410,-524.69,0.00024931,4]
[340932953,1730129442419,-500.0,0.00024931,4]
[340932954,1730129442429,-500.0,0.00024931,4]
[340932955,1730129442439,-855.76,0.00024931,4]
[340932956,1730129442449,-890.47,0.00024931,4]
[340932957,1730129442459,-517.16268067,0.00024931,4]
[340932958,1730129442468,-500.0,0.00024931,4]
[340932959,1730129442477,-500.0,0.00024931,4]
[340932960,1730129442489,-566.57,0.00024931,4]
[340932961,1730129442498,-633.26,0.00024931,4]
[340932962,1730129442508,-1975.47,0.00024931,4]
[340932963,1730129442519,-500.0,0.00024931,4]
[340932964,1730129442529,-1713.77,0.00024931,4]
[340932965,1730129442540,-729.11,0.00024931,4]
[340932966,1730129442551,-500.0,0.00024931,4]
[340932967,1730129442562,-500.0,0.00024931,4]
[340932968,1730129442699,-963.09,0.00024931,4]
[340932969,1730129442710,-500.0,0.00024931,4]
[340932970,1730129442721,-500.0,0.00024931,4]
[340932971,1730129442731,-500.0,0.00024931,4]
[340932972,1730129442742,-500.0,0.00024931,4]
[340932973,1730129442752,-500.0,0.00024931,4]
[340932974,1730129442762,-500.0,0.00024931,4]
[340932975,1730129442773,-500.0,0.00024931,4]
[340932976,1730129442784,-500.0,0.00024931,4]
[340932977,1730129442795,-500.0,0.00024931,4]
[340932978,1730129442805,-500.0,0.00024931,4]
[340932979,1730129442815,-500.0,0.00024931,4]
[340932980,1730129442825,-500.0,0.00024931,4]
[340932981,1730129442836,-608.05,0.00024931,4]
[340932982,1730129442846,-500.0,0.00024931,4]
[340932983,1730129442856,-823.3,0.00024931,4]
[340932984,1730129442870,-500.0,0.00024931,4]
[340932985,1730129442879,-500.0,0.00024931,4]
[340932986,1730129442891,-500.0,0.00024931,4]
[340932987,1730129442902,-443.77892746,0.00024931,4]
[340932988,1730129442914,-755.88,0.00024931,4]
[340932989,1730129442924,-539.85,0.00024931,4]
[340932991,1730129442935,-500.0,0.00024931,4]
[340932992,1730129442945,-500.0,0.00024931,4]
[340932994,1730129442956,-222.49444747,0.00024931,4]
[340932996,1730129442966,-626.47,0.00024931,4]
[340932997,1730129442977,-500.0,0.00024931,4]
[340932998,1730129442987,-500.0,0.00024931,4]
[340932999,1730129442997,-500.0,0.00024931,4]
[340933000,1730129443007,-500.0,0.00024931,4]
[340933001,1730129443017,-514.34,0.00024931,4]
[340933002,1730129443027,-500.0,0.00024931,4]
[340933003,1730129443038,-500.0,0.00024931,4]
[340933004,1730129443049,-500.0,0.00024931,4]
[340933005,1730129443059,-598.19,0.00024931,4]
[340933006,1730129443070,-500.0,0.00024931,4]
[340933008,1730129443080,-1067.13,0.00024931,4]
[340933010,1730129443090,-500.0,0.00024931,4]
[340933011,1730129443100,-843.82,0.00024931,4]
[340933013,1730129443112,-1143.48,0.00024931,4]
[340933015,1730129443122,-500.0,0.00024931,4]
[340933017,1730129443133,-1025.09,0.00024931,4]
[340933019,1730129443142,-500.0,0.00024931,4]
[340933021,1730129443152,-561.61,0.00024931,4]
[340933023,1730129443163,-527.41,0.00024931,4]
[340933026,1730129443174,-500.0,0.00024931,4]
[340933028,1730129443184,-500.0,0.00024931,4]
[340933030,1730129443195,-500.0,0.00024931,4]
[340933032,1730129443205,-710.98,0.00024931,4]
[340933034,1730129443215,-500.0,0.00024931,4]
[340933036,1730129443225,-3382.1,0.00024931,4]
[340933038,1730129443234,-500.0,0.00024931,4]
[340933040,1730129443244,-500.0,0.00024931,4]
[340933042,1730129443254,-644.42,0.00024931,4]
[340933045,1730129443265,-1268.24,0.00024931,4]
[340933047,1730129443276,-500.0,0.00024931,4]
[340933049,1730129443286,-975.81,0.00024931,4]
[340933051,1730129443296,-500.0,0.00024931,4]
[340933053,1730129443306,-500.0,0.00024931,4]
[340933055,1730129443315,-500.0,0.00024931,4]
[340933057,1730129443325,-1017.35,0.00024931,4]
[340933059,1730129443335,-620.42,0.00024931,4]
[340933062,1730129443344,-500.0,0.00024931,4]
[340933064,1730129443354,-500.0,0.00024931,4]
[340933067,1730129443365,-576.34,0.00024931,4]
[340933069,1730129443375,-1089.8,0.00024931,4]
[340933072,1730129443385,-500.0,0.00024931,4]
[340933074,1730129443394,-500.0,0.00024931,4]
[340933075,1730129443404,-1006.91,0.00024931,4]
[340933076,1730129443413,-523.23,0.00024931,4]
[340933077,1730129443423,-500.0,0.00024931,4]
[340933079,1730129443434,-500.0,0.00024931,4]
[340933081,1730129443444,-500.0,0.00024931,4]
[340933083,1730129443454,-4461.47,0.00024931,4]
[340933085,1730129443463,-620.97,0.00024931,4]
[340933087,1730129443472,-500.0,0.00024931,4]
[340933089,1730129443482,-500.0,0.00024931,4]
[340933091,1730129443491,-500.0,0.00024931,4]
[340933093,1730129443502,-1799.72,0.00024931,4]
[340933095,1730129443512,-500.0,0.00024931,4]
[340933097,1730129443523,-530.25,0.00024931,4]
[340933099,1730129443533,-500.0,0.00024931,4]
[340933101,1730129443543,-878.91,0.00024931,4]
[340933104,1730129443555,-195.31505005,0.00024931,4]
[340933107,1730129443565,-500.0,0.00024931,4]
[340933109,1730129443575,-742.22,0.00024931,4]
[340933111,1730129443584,-500.0,0.00024931,4]
[340933113,1730129443595,-500.0,0.00024931,4]
[340933115,1730129443605,-769.44,0.00024931,4]
[340933117,1730129443618,-500.0,0.00024931,4]
[340933119,1730129443628,-500.0,0.00024931,4]
[340933121,1730129443639,-500.0,0.00024931,4]
[340933123,1730129443648,-500.0,0.00024931,4]
[340933125,1730129443658,-624.33,0.00024931,4]
[340933127,1730129443669,-1927.27,0.00024931,4]
[340933129,1730129443678,-819.93,0.00024931,4]
[340933131,1730129443688,-1497.68,0.00024931,4]
[340933133,1730129443698,-500.0,0.00024931,4]
[340933135,1730129443708,-1026.37,0.00024931,4]
[340933136,1730129443718,-500.0,0.00024931,4]
[340933138,1730129443729,-2868.93,0.00024931,4]
[340933140,1730129443738,-761.76,0.00024931,4]
[340933141,1730129443748,-738.76,0.00024931,4]
[340933143,1730129443757,-683.67,0.00024931,4]
[340933145,1730129443767,-500.0,0.00024931,4]
[340933146,1730129443776,-500.0,0.00024931,4]
[340933148,1730129443786,-786.95,0.00024931,4]
[340933149,1730129443796,-6316.7,0.00024931,4]
[340933151,1730129443806,-1284.43,0.00024931,4]
[340933153,1730129443817,-500.0,0.00024931,4]
[340933154,1730129443827,-650.23,0.00024931,4]
[340933156,1730129443837,-3145.16,0.00024931,4]
[340933158,1730129443847,-1227.62,0.00024931,4]
[340933159,1730129443858,-1884.49,0.00024931,4]
[340933161,1730129443868,-601.67,0.00024931,4]
[340933163,1730129443878,-1727.69,0.00024931,4]
[340933164,1730129443888,-500.0,0.00024931,4]
[340933166,1730129443898,-1046.1,0.00024931,4]
[340933168,1730129443913,-500.0,0.00024931,4]
[340933170,1730129443923,-500.0,0.00024931,4]
[340933172,1730129443933,-1689.97,0.00024931,4]
[340933173,1730129443943,-778.9,0.00024931,4]
[340933175,1730129443953,-652.89,0.00024931,4]
[340933177,1730129443963,-1030.36,0.00024931,4]
[340933178,1730129443972,-500.0,0.00024931,4]
[340933180,1730129443985,-500.0,0.00024931,4]
[340933182,1730129443995,-1456.12,0.00024931,4]
[340933183,1730129444004,-1629.02,0.00024931,4]
[340933185,1730129444014,-500.0,0.00024931,4]
[340933187,1730129444023,-500.0,0.00024931,4]
[340933189,1730129444033,-500.0,0.00024931,4]
[340933191,1730129444042,-1204.2,0.00024931,4]
[340933192,1730129444051,-500.0,0.00024931,4]
[340933194,1730129444060,-1554.92,0.00024931,4]
[340933196,1730129444071,-507.55,0.00024931,4]
[340933198,1730129444080,-500.0,0.00024931,4]
[340933199,1730129444089,-500.0,0.00024931,2]
[340933201,1730129444099,-500.0,0.00024931,4]
[340933203,1730129444108,-500.0,0.00024931,4]
[340933204,1730129444117,-925.28,0.00024931,4]
[340933205,1730129444128,-610.14,0.00024931,4]
[340933206,1730129444138,-502.93816305,0.00024973,2]
[340933207,1730129444147,-500.0,0.00024973,2]
[340933209,1730129444156,-160.03631232,0.00024973,2]
[340933211,1730129444166,-160.04242315,0.00024973,2]
[340933213,1730129444176,-160.04242315,0.00024973,2]
[340933215,1730129444185,-150.27741088,0.00025,2]
[340933217,1730129444195,-19551.89854074,0.00025,2]
[340933220,1730129444211,-142941.14389187,0.00025,2]
[340933222,1730129444222,-1037.40977049,0.00025,2]
[340933224,1730129444232,-201.0,0.00025,2]
[340933225,1730129444242,-540935.75820821,0.00025,2]
[340933226,1730129444251,-7485.91463838,0.00025,2]
[340933227,1730129444260,-165.03079931,0.00025,2]
[340933228,1730129444270,-56781.75398569,0.00025,2]
[340933229,1730129444280,-508.48003928,0.00025,2]
[340933230,1730129444290,-202.85958288,0.00025,2]
[340933231,1730129444300,-10364.0,0.00025,2]
[340933232,1730129444309,-345.71181561,0.00025,2]
[340933233,1730129444321,-825.44987244,0.00025,2]
[340933234,1730129444331,-315722.65496582,0.0002509,2]
[340933235,1730129444341,-314.98,0.000251,14]
[340933236,1730129444352,-183.64,0.000251,14]
[340933237,1730129444364,-1313.8,0.000251,14]
[340933238,1730129444375,-858.9,0.000251,14]
[340933239,1730129444386,-500.0,0.00025205,4]
[340933240,1730129444396,-500.0,0.00025205,4]
[340933241,1730129444408,-500.0,0.00025205,4]
[340933242,1730129444418,-500.22054336,0.00025205,4]
[340933243,1730129444429,-500.0,0.00025205,4]
[340933244,1730129444441,-1140.24,0.00025205,4]
[340933245,1730129444450,-500.0,0.00025205,4]
[340933246,1730129444460,-500.0,0.00025205,4]
[340933247,1730129444470,-500.0,0.00025205,4]
[340933248,1730129444479,-500.0,0.00025205,4]
[340933249,1730129444489,-749.87,0.00025205,4]
[340933250,1730129444498,-500.0,0.00025205,4]
[340933251,1730129444508,-500.0,0.00025205,4]
[340933252,1730129444517,-500.0,0.00025205,4]
[340933253,1730129444526,-200.0,0.00025205,4]
[340933254,1730129444537,-543.99,0.00025205,4]
[340933255,1730129444548,-760.29,0.00025205,4]
[340933256,1730129444558,-500.0,0.00025205,4]
[340933257,1730129444569,-500.0,0.00025205,4]
[340933258,1730129444579,-257.86545262,0.00025205,4]
[340933259,1730129444588,-1004.66,0.00025205,4]
[340933260,1730129444598,-500.0,0.00025205,4]
[340933261,1730129444609,-1133.69,0.00025205,4]
[340933262,1730129444619,-591.96,0.00025205,4]
[340933263,1730129444631,-711.78,0.00025205,4]
[340933264,1730129444642,-578.82,0.00025205,4]
[340933265,1730129444652,-1542.68,0.00025205,4]
[340933266,1730129444663,-500.0,0.00025205,4]
[340933267,1730129444674,-722.74,0.00025205,4]
[340933268,1730129444684,-955.43,0.00025205,4]
[340933269,1730129444696,-524.69,0.00025205,4]
[340933270,1730129444708,-500.0,0.00025205,4]
[340933271,1730129444718,-500.0,0.00025205,4]
[340933272,1730129444728,-855.76,0.00025205,4]
[340933273,1730129444739,-890.47,0.00025205,4]
[340933274,1730129444750,-500.0,0.00025205,4]
[340933275,1730129444761,-508.74809913,0.00025205,4]
[340933276,1730129444772,-566.57,0.00025205,4]
[340933277,1730129444784,-633.26,0.00025205,4]
[340933278,1730129444795,-1975.47,0.00025205,4]
[340933279,1730129444806,-500.0,0.00025205,4]
[340933280,1730129444817,-1713.77,0.00025205,4]
[340933281,1730129444829,-729.11,0.00025205,4]
[340933282,1730129444839,-500.0,0.00025205,4]
[340933283,1730129444850,-500.0,0.00025205,4]
[340933284,1730129444861,-963.09,0.00025205,4]
[340933285,1730129444871,-500.0,0.00025205,4]
[340933286,1730129444881,-500.0,0.00025205,4]
[340933287,1730129444891,-581.54366736,0.00025205,4]
[340933288,1730129444902,-500.0,0.00025205,4]
[340933289,1730129444915,-500.0,0.00025205,4]
[340933290,1730129444924,-500.0,0.00025205,4]
[340933291,1730129444934,-500.0,0.00025205,4]
[340933292,1730129444945,-500.0,0.00025205,4]
[340933293,1730129444957,-500.0,0.00025205,4]
[340933294,1730129444967,-500.0,0.00025205,4]
[340933295,1730129444978,-500.0,0.00025205,4]
[340933296,1730129444990,-500.0,0.00025205,4]
[340933297,1730129445003,-608.05,0.00025205,4]
[340933298,1730129445014,-500.0,0.00025205,4]
[340933299,1730129445024,-823.3,0.00025205,4]
[340933300,1730129445036,-500.0,0.00025205,4]
[340933301,1730129445046,-500.0,0.00025205,4]
[340933302,1730129445057,-500.0,0.00025205,4]
[340933303,1730129445067,-755.88,0.00025205,4]
[340933304,1730129445077,-539.85,0.00025205,4]
[340933305,1730129445087,-500.0,0.00025205,4]
[340933306,1730129445096,-500.0,0.00025205,4]
[340933307,1730129445107,-626.47,0.00025205,4]
[340933308,1730129445118,-500.0,0.00025205,4]
[340933309,1730129445128,-500.0,0.00025205,4]
[340933310,1730129445138,-500.0,0.00025205,4]
[340933311,1730129445148,-500.0,0.00025205,4]
[340933312,1730129445157,-514.34,0.00025205,4]
[340933313,1730129445168,-500.0,0.00025205,4]
[340933314,1730129445179,-500.0,0.00025205,4]
[340933315,1730129445190,-500.0,0.00025205,4]
[340933316,1730129445202,-598.19,0.00025205,4]
[340933317,1730129445212,-500.0,0.00025205,4]
[340933318,1730129445223,-1067.13,0.00025205,4]
[340933319,1730129445232,-500.0,0.00025205,4]
[340933320,1730129445242,-843.82,0.00025205,4]
[340933321,1730129445253,-1143.48,0.00025205,4]
[340933322,1730129445263,-402.66961533,0.00025205,4]
[340933323,1730129445274,-1025.09,0.00025205,4]
[340933324,1730129445285,-500.0,0.00025205,4]
[340933325,1730129445295,-561.61,0.00025205,4]
[340933326,1730129445306,-527.41,0.00025205,4]
[340933327,1730129445316,-500.0,0.00025205,4]
[340933328,1730129445327,-500.0,0.00025205,4]
[340933329,1730129445456,-500.0,0.00025205,4]
[340933330,1730129445467,-710.98,0.00025205,4]
[340933331,1730129445478,-500.0,0.00025205,4]
[340933332,1730129445488,-3382.1,0.00025205,4]
[340933333,1730129445497,-500.0,0.00025205,4]
[340933334,1730129445507,-500.0,0.00025205,4]
[340933335,1730129445518,-644.42,0.00025205,4]
[340933336,1730129445527,-1268.24,0.00025205,4]
[340933337,1730129445538,-500.0,0.00025205,4]
[340933338,1730129445548,-975.81,0.00025205,4]
[340933339,1730129445558,-500.0,0.00025205,4]
[340933340,1730129445569,-500.0,0.00025205,4]
[340933341,1730129445580,-500.0,0.00025205,4]
[340933342,1730129445591,-1017.35,0.00025205,4]
[340933343,1730129445601,-620.42,0.00025205,4]
[340933344,1730129445613,-500.0,0.00025205,4]
[340933345,1730129445624,-500.0,0.00025205,4]
[340933346,1730129445634,-82.52108222,0.00025205,4]
[340933347,1730129445796,-493.81891778,0.00025205,4]
[340933348,1730129445806,-1089.8,0.00025205,4]
[340933349,1730129445816,-14.25340237,0.00025205,4]
[340933351,1730129446010,-485.74659763,0.00025205,4]
[340933352,1730129446019,-500.0,0.00025205,4]
[340933353,1730129446029,-1006.91,0.00025205,4]
[340933354,1730129446039,-523.23,0.00025205,4]
[340933355,1730129446049,-500.0,0.00025205,4]
[340933356,1730129446060,-500.0,0.00025205,4]
[340933357,1730129446070,-500.0,0.00025205,4]
[340933358,1730129446080,-4461.47,0.00025205,4]
[340933359,1730129446089,-500.0,0.00025205,4]
[340933360,1730129446101,-620.97,0.00025205,4]
[340933361,1730129446113,-500.0,0.00025205,4]
[340933363,1730129446123,-500.0,0.00025205,4]
[340933364,1730129446133,-1799.72,0.00025205,4]
[340933365,1730129446143,-500.0,0.00025205,4]
[340933366,1730129446154,-530.25,0.00025205,4]
[340933367,1730129446164,-500.0,0.00025205,4]
[340933368,1730129446175,-878.91,0.00025205,4]
[340933369,1730129446185,-500.0,0.00025205,4]
[340933370,1730129446196,-742.22,0.00025205,4]
[340933371,1730129446205,-500.0,0.00025205,4]
[340933372,1730129446215,-500.0,0.00025205,4]
[340933373,1730129446226,-769.44,0.00025205,4]
[340933374,1730129446236,-500.0,0.00025205,4]
[340933375,1730129446246,-500.0,0.00025205,4]
[340933376,1730129446255,-500.0,0.00025205,4]
[340933377,1730129446265,-500.0,0.00025205,4]
[340933378,1730129446275,-1927.27,0.00025205,4]
[340933379,1730129446285,-624.33,0.00025205,4]
[340933380,1730129446297,-819.93,0.00025205,4]
[340933381,1730129446307,-1497.68,0.00025205,4]
[340933382,1730129446317,-500.0,0.00025205,4]
[340933383,1730129446327,-1026.37,0.00025205,4]
[340933384,1730129446337,-500.0,0.00025205,4]
[340933385,1730129446347,-2868.93,0.00025205,4]
[340933386,1730129446357,-761.76,0.00025205,4]
[340933387,1730129446368,-738.76,0.00025205,4]
[340933388,1730129446379,-683.67,0.00025205,4]
[340933389,1730129446389,-409.84561146,0.00025205,4]
[340933390,1730129446399,-500.0,0.00025205,4]
[340933391,1730129446408,-786.95,0.00025205,4]